fUSD/lending_fUSD_20241225
["ID","MTS","AMOUNT","RATE_DAILY","PERIOD"]
[346562521,1735087855499,-3018.27,0.00012978,2]
[346562522,1735087855508,-500.0,0.00012978,2]
[346562523,1735087855517,-500.0,0.00012978,2]
[346562524,1735087855526,-1746.24,0.00012978,2]
[346562525,1735087855535,-500.0,0.00012978,2]
[346562526,1735087855544,-500.0,0.00012978,2]
[346562527,1735087855553,-500.0,0.00012978,2]
[346562528,1735087855562,-777.5,0.00012978,2]
[346562529,1735087855571,-679.79,0.00012978,2]
[346562530,1735087855580,-500.0,0.00012978,2]
[346562531,1735087855590,-1642.66,0.00012978,2]
[346562532,1735087855599,-500.0,0.00012978,2]
[346562533,1735087855609,-2373.97,0.00012978,2]
[346562534,1735087855618,-500.0,0.00012978,2]
[346562535,1735087855627,-500.0,0.00012978,2]
[346562536,1735087855636,-2862.37,0.00012978,2]
[346562537,1735087855645,-500.0,0.00012978,2]
[346562538,1735087855654,-2138.09,0.00012978,2]
[346562539,1735087855663,-500.0,0.00012978,2]
[346562540,1735087855673,-354.967701,0.00012978,2]
[346562541,1735087855682,-354.967701,0.00012978,2]
[346562542,1735087855691,-354.967701,0.00012978,2]
[346562543,1735087855700,-354.967701,0.00012978,2]
[346562544,1735087855710,-354.967701,0.00012978,2]
[346562545,1735087855719,-354.967701,0.00012978,2]
[346562546,1735087855728,-354.967701,0.00012978,2]
[346562547,1735087855739,-354.967697,0.00012978,2]
[346562548,1735087855750,-2368.37,0.00012978,2]
[346562549,1735087855759,-1021.63,0.00012978,2]
[346562550,1735087855769,-1039.69,0.00012978,2]
[346562551,1735087855778,-500.0,0.00012978,2]
[346562552,1735087855788,-500.0,0.00012978,2]
[346562553,1735087855797,-500.0,0.00012978,2]
[346562554,1735087855806,-2263.4,0.00012978,2]
[346562555,1735087855816,-500.0,0.00012978,2]
[346562556,1735087855825,-811.09,0.00012978,2]
[346562557,1735087855835,-500.0,0.00012978,2]
[346562558,1735087855845,-2141.44,0.00012978,2]
[346562559,1735087855854,-500.0,0.00012978,2]
[346562560,1735087855864,-500.0,0.00012978,2]
[346562561,1735087855874,-500.0,0.00012978,2]
[346562562,1735087855883,-500.0,0.00012978,2]
[346562563,1735087855892,-500.0,0.00012978,2]
[346562564,1735087855902,-500.0,0.00012978,2]
[346562565,1735087855911,-500.0,0.00012978,2]
[346562566,1735087855920,-500.0,0.00012978,2]
[346562567,1735087855930,-2690.69,0.00012978,2]
[346562568,1735087855939,-500.0,0.00012978,2]
[346562569,1735087855948,-1098.85,0.00012978,2]
[346562570,1735087855958,-1638.24,0.00012978,2]
[346562571,1735087855968,-500.0,0.00012978,2]
[346562572,1735087855978,-500.0,0.00012978,2]
[346562573,1735087855987,-1403.24,0.00012978,2]
[346562574,1735087855996,-640.1329973,0.00012978,2]
[346562575,1735087856006,-500.0,0.00012978,2]
[346562576,1735087856015,-500.0,0.00012978,2]
[346562577,1735087856024,-500.0,0.00012978,2]
[346562578,1735087856033,-500.0,0.00012978,2]
[346562579,1735087856043,-500.0,0.00012978,2]
[346562580,1735087856054,-500.0,0.00012978,2]
[346562581,1735087856063,-455.32,0.00012978,2]
[346562582,1735087856072,-500.0,0.00012978,2]
[346562583,1735087856081,-500.0,0.00012978,2]
[346562584,1735087856090,-500.0,0.00012978,2]
[346562585,1735087856099,-501.46344245,0.00012978,2]
[346562586,1735087856109,-500.0,0.00012978,2]
[346562587,1735087856119,-3517.05,0.00012978,2]
[346562588,1735087856128,-1451.2,0.00012978,2]
[346562589,1735087856137,-500.0,0.00012978,2]
[346562590,1735087856147,-239.77563793,0.00012978,2]
[346562591,1735087856156,-500.0,0.00012978,2]
[346562592,1735087856165,-500.0,0.00012978,2]
[346562593,1735087856174,-784.77,0.00012978,2]
[346562594,1735087856183,-500.0,0.00012978,2]
[346562595,1735087856192,-500.0,0.00012978,2]
[346562596,1735087856201,-1716.22,0.00012978,2]
[346562597,1735087856211,-1810.73,0.00012978,2]
[346562598,1735087856220,-629.57072096,0.00012978,2]
[346562599,1735087856229,-151.0,0.00012979,2]
[346562600,1735087856241,-151.0,0.00012979,2]
[346562601,1735087856250,-151.0,0.00012979,2]
[346562602,1735087856259,-151.0,0.00012979,2]
[346562603,1735087856268,-151.0,0.00012979,2]
[346562604,1735087856277,-151.0,0.00012979,2]
[346562605,1735087856286,-151.0,0.00012979,2]
[346562606,1735087856295,-151.0,0.00012979,2]
[346562607,1735087856304,-151.0,0.00012979,2]
[346562608,1735087856313,-151.0,0.00012979,2]
[346562609,1735087856322,-151.0,0.00012979,2]
[346562610,1735087856331,-151.0,0.00012979,2]
[346562611,1735087856341,-500.0,0.00012979,2]
[346562612,1735087856350,-151.0,0.00012979,2]
[346562613,1735087856359,-151.0,0.00012979,2]
[346562614,1735087856368,-173.047132,0.00012979,2]
[346562615,1735087856377,-500.0,0.00012979,2]
[346562616,1735087856386,-504.49020344,0.00012979,2]
[346562617,1735087856395,-502.09902832,0.00012979,2]
[346562618,1735087856404,-500.0,0.00012979,2]
[346562619,1735087856413,-500.0,0.00012979,2]
[346562620,1735087856422,-507.58774291,0.00012979,2]
[346562621,1735087856431,-511.80022877,0.00012979,2]
[346562622,1735087856441,-500.0,0.00012979,2]
[346562623,1735087856452,-500.0,0.00012979,2]
[346562624,1735087856612,-501.32393444,0.00012979,2]
[346562625,1735087856631,-500.0,0.00012979,2]
[346562626,1735087856641,-500.0,0.00012979,2]
[346562627,1735087856651,-338.16793273,0.00012979,2]
[346562628,1735087856660,-500.45827039,0.00012979,2]
[346562629,1735087856669,-500.0,0.00012979,2]
[346562630,1735087856679,-500.0,0.00012979,2]
[346562631,1735087856688,-500.0,0.00012979,2]
[346562632,1735087856698,-500.0,0.00012979,2]
[346562633,1735087856707,-439.91779425,0.00012979,2]
[346562634,1735087856715,-500.0,0.00012979,2]
[346562635,1735087856724,-500.0,0.00012979,2]
[346562636,1735087856733,-151.0,0.00012979,2]
[346562637,1735087856746,-151.0,0.00012979,2]
[346562638,1735087856755,-311.61334145,0.00012979,2]
[346562639,1735087856764,-151.0,0.00012979,2]
[346562640,1735087856773,-151.0,0.00012979,2]
[346562641,1735087856782,-151.0,0.00012979,2]
[346562642,1735087856791,-151.0,0.00012979,2]
[346562643,1735087856800,-503.26803898,0.00012979,2]
[346562644,1735087856809,-500.0,0.00012979,2]
[346562645,1735087856818,-221.24865269,0.00012979,2]
[346562646,1735087856827,-499.37505439,0.00012979,2]
[346562647,1735087856836,-504.46411537,0.00012979,2]
[346562648,1735087856845,-500.0,0.00012979,2]
[346562649,1735087856855,-500.0,0.00012979,2]
[346562650,1735087856864,-500.0,0.00012979,2]
[346562651,1735087856873,-502.12979679,0.00012979,2]
[346562652,1735087856883,-377.0528232,0.00012979,2]
[346562653,1735087856892,-500.0,0.00012979,2]
[346562654,1735087856901,-500.0,0.00012979,2]
[346562655,1735087856910,-505.71305123,0.00012979,2]
[346562656,1735087856919,-502.92762248,0.00012979,2]
[346562657,1735087856928,-500.00030217,0.00012979,2]
[346562658,1735087856937,-151.0,0.00012979,2]
[346562659,1735087856946,-151.0,0.00012979,2]
[346562660,1735087856955,-500.0,0.00012979,2]
[346562661,1735087856964,-152.045099,0.00012979,2]
[346562662,1735087856973,-233.73443794,0.00012979,2]
[346562663,1735087856983,-501.07150017,0.00012979,2]
[346562664,1735087856992,-500.0,0.00012979,2]
[346562665,1735087857002,-500.0,0.00012979,2]
[346562666,1735087857011,-151.0,0.00012979,2]
[346562667,1735087857020,-151.0,0.00012979,2]
[346562668,1735087857029,-151.0,0.00012979,2]
[346562669,1735087857038,-151.0,0.00012979,2]
[346562670,1735087857047,-151.0,0.00012979,2]
[346562671,1735087857056,-500.0,0.00012979,2]
[346562672,1735087857065,-151.0,0.00012979,2]
[346562673,1735087857074,-151.0,0.00012979,2]
[346562674,1735087857083,-151.0,0.00012979,2]
[346562675,1735087857093,-286.599113,0.00012979,2]
[346562676,1735087857102,-151.0,0.00012979,2]
[346562677,1735087857113,-151.0,0.00012979,2]
[346562678,1735087857124,-151.0,0.00012979,2]
[346562679,1735087857133,-500.0,0.00012979,2]
[346562680,1735087857142,-500.0,0.00012979,2]
[346562681,1735087857151,-613.44020325,0.00012979,2]
[346562682,1735087857160,-500.0,0.00012979,2]
[346562683,1735087857170,-151.0,0.00012979,2]
[346562684,1735087857179,-151.0,0.00012979,2]
[346562685,1735087857188,-151.0,0.00012979,2]
[346562686,1735087857197,-500.77292044,0.00012979,2]
[346562687,1735087857206,-151.0,0.00012979,2]
[346562688,1735087857216,-151.0,0.00012979,2]
[346562689,1735087857225,-151.0,0.00012979,2]
[346562690,1735087857235,-151.0,0.00012979,2]
[346562691,1735087857243,-151.0,0.00012979,2]
[346562692,1735087857252,-500.0,0.00012979,2]
[346562693,1735087857261,-151.0,0.00012979,2]
[346562694,1735087857271,-151.0,0.00012979,2]
[346562695,1735087857280,-151.0,0.00012979,2]
[346562696,1735087857291,-151.0,0.00012979,2]
[346562697,1735087857300,-151.0,0.00012979,2]
[346562698,1735087857310,-151.0,0.00012979,2]
[346562699,1735087857320,-151.0,0.00012979,2]
[346562700,1735087857329,-151.0,0.00012979,2]
[346562701,1735087857339,-151.0,0.00012979,2]
[346562702,1735087857348,-288.108687,0.00012979,2]
[346562703,1735087857357,-151.0,0.00012979,2]
[346562704,1735087857366,-210.895731,0.00012979,2]
[346562705,1735087857375,-501.61703883,0.00012979,2]
[346562706,1735087857384,-151.0,0.00012979,2]
[346562707,1735087857393,-151.0,0.00012979,2]
[346562708,1735087857402,-151.0,0.00012979,2]
[346562709,1735087857412,-151.0,0.00012979,2]
[346562710,1735087857421,-151.0,0.00012979,2]
[346562711,1735087857430,-425.71175818,0.00012979,2]
[346562712,1735087857440,-151.0,0.00012979,2]
[346562713,1735087857449,-151.0,0.00012979,2]
[346562714,1735087857458,-151.0,0.00012979,2]
[346562715,1735087857467,-265.459164,0.00012979,2]
[346562716,1735087857477,-500.0,0.00012979,2]
[346562717,1735087857486,-205.944074,0.00012979,2]
[346562718,1735087857495,-205.944074,0.00012979,2]
[346562719,1735087857505,-205.944074,0.00012979,2]
[346562720,1735087857519,-205.944074,0.00012979,2]
[346562721,1735087857528,-205.944074,0.00012979,2]
[346562722,1735087857537,-159.38220651,0.00012979,2]
[346562723,1735087857546,-205.944074,0.00012979,2]
[346562724,1735087857555,-205.944074,0.00012979,2]
[346562725,1735087857564,-500.0,0.00012979,2]
[346562726,1735087857573,-205.944074,0.00012979,2]
[346562727,1735087857583,-205.944074,0.00012979,2]
[346562728,1735087857593,-205.944074,0.00012979,2]
[346562729,1735087857602,-205.944074,0.00012979,2]
[346562730,1735087857611,-205.944074,0.00012979,2]
[346562731,1735087857620,-500.0,0.00012979,2]
[346562732,1735087857629,-205.944074,0.00012979,2]
[346562733,1735087857638,-205.944074,0.00012979,2]
[346562734,1735087857647,-500.7541932,0.00012979,2]
[346562735,1735087857656,-151.0,0.00012979,2]
[346562736,1735087857665,-151.0,0.00012979,2]
[346562737,1735087857675,-151.0,0.00012979,2]
[346562738,1735087857684,-500.0,0.00012979,2]
[346562739,1735087857693,-151.0,0.00012979,2]
[346562740,1735087857702,-151.0,0.00012979,2]
[346562741,1735087857711,-151.0,0.00012979,2]
[346562742,1735087857719,-151.0,0.00012979,2]
[346562743,1735087857728,-151.0,0.00012979,2]
[346562744,1735087857738,-500.0,0.00012979,2]
[346562745,1735087857751,-500.0,0.00012979,2]
[346562746,1735087857760,-500.797062,0.00012979,2]
[346562747,1735087857769,-500.0,0.00012979,2]
[346562748,1735087857778,-500.0,0.00012979,2]
[346562749,1735087857789,-500.0,0.00012979,2]
[346562750,1735087857799,-215.62514,0.00012979,2]
[346562751,1735087857808,-500.0,0.00012979,2]
[346562752,1735087857819,-215.62514,0.00012979,2]
[346562753,1735087857829,-215.62514,0.00012979,2]
[346562754,1735087857838,-215.62514,0.00012979,2]
[346562755,1735087857847,-215.62514,0.00012979,2]
[346562756,1735087857857,-215.62514,0.00012979,2]
[346562757,1735087857866,-500.0,0.00012979,2]
[346562758,1735087857875,-215.62514,0.00012979,2]
[346562759,1735087857885,-215.62514,0.00012979,2]
[346562760,1735087857894,-215.62514,0.00012979,2]
[346562761,1735087857903,-215.62514,0.00012979,2]
[346562762,1735087857912,-215.62514,0.00012979,2]
[346562763,1735087857921,-500.0,0.00012979,2]
[346562764,1735087857930,-215.62514,0.00012979,2]
[346562765,1735087857939,-151.0,0.00012979,2]
[346562766,1735087857948,-500.0,0.00012979,2]
[346562767,1735087857957,-500.0,0.00012979,2]
[346562768,1735087857966,-214.491292,0.00012979,2]
[346562769,1735087857976,-214.491292,0.00012979,2]
[346562770,1735087857985,-214.491292,0.00012979,2]
[346562771,1735087857994,-214.491292,0.00012979,2]
[346562772,1735087858004,-214.491292,0.00012979,2]
[346562773,1735087858013,-214.491292,0.00012979,2]
[346562774,1735087858022,-214.491292,0.00012979,2]
[346562775,1735087858031,-214.491292,0.00012979,2]
[346562776,1735087858040,-214.491292,0.00012979,2]
[346562777,1735087858049,-214.491292,0.00012979,2]
[346562778,1735087858059,-500.0,0.00012979,2]
[346562779,1735087858069,-214.491292,0.00012979,2]
[346562780,1735087858078,-214.491292,0.00012979,2]
[346562781,1735087858087,-214.491292,0.00012979,2]
[346562782,1735087858097,-214.491292,0.00012979,2]
[346562783,1735087858108,-151.0,0.00012979,2]
[346562784,1735087858117,-151.0,0.00012979,2]
[346562785,1735087858126,-500.0,0.00012979,2]
[346562786,1735087858135,-500.0,0.00012979,2]
[346562787,1735087858144,-300.0,0.00012979,2]
[346562788,1735087858153,-500.0,0.00012979,2]
[346562789,1735087858162,-500.0,0.00012979,2]
[346562790,1735087858171,-500.0,0.00012979,2]
[346562791,1735087858180,-500.0,0.00012979,2]
[346562792,1735087858189,-500.0,0.00012979,2]
[346562793,1735087858198,-500.0,0.00012979,2]
[346562794,1735087858207,-500.0,0.00012979,2]
[346562795,1735087858216,-500.0,0.00012979,2]
[346562796,1735087858226,-500.0,0.00012979,2]
[346562797,1735087858236,-500.0,0.00012979,2]
[346562798,1735087858245,-500.0,0.00012979,2]
[346562799,1735087858254,-500.0,0.00012979,2]
[346562800,1735087858263,-306.50914886,0.00012979,2]
[346562801,1735087858272,-170.910951,0.00012979,2]
[346562802,1735087858282,-500.0,0.00012979,2]
[346562803,1735087858291,-170.910951,0.00012979,2]
[346562804,1735087858300,-167.176328,0.00012979,2]
[346562805,1735087858309,-167.176328,0.00012979,2]
[346562806,1735087858318,-500.0,0.00012979,2]
[346562807,1735087858327,-167.176328,0.00012979,2]
[346562808,1735087858336,-170.910951,0.00012979,2]
[346562809,1735087858345,-167.176329,0.00012979,2]
[346562810,1735087858354,-170.910956,0.00012979,2]
[346562811,1735087858363,-500.0,0.00012979,2]
[346562812,1735087858372,-179.39158835,0.00012979,2]
[346562813,1735087858382,-500.0,0.00012979,2]
[346562814,1735087858392,-500.0,0.00012979,2]
[346562815,1735087858401,-500.0,0.00012979,2]
[346562816,1735087858410,-500.0,0.00012979,2]
[346562817,1735087858419,-242.3652811,0.00012979,2]
[346562818,1735087858427,-500.0,0.00012979,2]
[346562819,1735087858436,-368.149659,0.00012979,2]
[346562820,1735087858445,-368.149655,0.00012979,2]
[346562821,1735087858454,-500.0,0.00012979,2]
[346562822,1735087858463,-501.13916705,0.00012979,2]
[346562823,1735087858472,-500.0,0.00012979,2]
[346562824,1735087858481,-500.0,0.00012979,2]
[346562825,1735087858492,-1849.44222,0.00012979,2]
[346562826,1735087858501,-1849.44222,0.00012979,2]
[346562827,1735087858510,-500.0,0.00012979,2]
[346562828,1735087858519,-1849.44222,0.00012979,2]
[346562829,1735087858528,-1849.44223,0.00012979,2]
[346562830,1735087858537,-500.0,0.00012979,2]
[346562831,1735087858546,-500.0,0.00012979,2]
[346562832,1735087858555,-251.79163988,0.00012979,2]
[346562833,1735087858563,-500.0,0.00012979,2]
[346562834,1735087858572,-500.0,0.00012979,2]
[346562835,1735087858581,-368.849328,0.00012979,2]
[346562836,1735087858592,-368.849328,0.00012979,2]
[346562837,1735087858601,-368.849328,0.00012979,2]
[346562838,1735087858610,-368.849335,0.00012979,2]
[346562839,1735087858619,-197.53704,0.00012979,2]
[346562840,1735087858628,-197.53704,0.00012979,2]
[346562841,1735087858637,-197.53704,0.00012979,2]
[346562842,1735087858646,-197.53705,0.00012979,2]
[346562843,1735087858656,-1847.98,0.00012979,2]
[346562844,1735087858665,-1644.2,0.00012979,2]
[346562845,1735087858675,-500.0,0.00012979,2]
[346562846,1735087858684,-500.84639473,0.00012979,2]
[346562847,1735087858693,-500.0,0.00012979,2]
[346562848,1735087858702,-2282.73,0.00012979,2]
[346562849,1735087858712,-777.38,0.00012979,2]
[346562850,1735087858721,-2185.57,0.00012979,2]
[346562851,1735087858730,-4078.19,0.00012979,2]
[346562852,1735087858739,-500.0,0.00012979,2]
[346562853,1735087858748,-739.13,0.00012979,2]
[346562854,1735087858757,-921.11,0.00012979,2]
[346562855,1735087858769,-1128.53,0.00012979,2]
[346562856,1735087858778,-1538.88,0.00012979,2]
[346562857,1735087858787,-1924.77,0.00012979,2]
[346562858,1735087858796,-1320.14,0.00012979,2]
[346562859,1735087858805,-4229.65,0.00012979,2]
[346562860,1735087858814,-500.0,0.00012979,2]
[346562861,1735087858824,-1116.12,0.00012979,2]
[346562862,1735087858833,-500.0,0.00012979,2]
[346562863,1735087858842,-1442.38,0.00012979,2]
[346562864,1735087858851,-1924.16,0.00012979,2]
[346562865,1735087858860,-1990.95,0.00012979,2]
[346562866,1735087858869,-3946.3,0.00012979,2]
[346562867,1735087858878,-2153.12,0.00012979,2]
[346562868,1735087858887,-500.0,0.00012979,2]
[346562869,1735087858895,-4182.87,0.00012979,2]
[346562870,1735087858904,-3631.15,0.00012979,2]
[346562871,1735087858913,-500.0,0.00012979,2]
[346562872,1735087858922,-948.62,0.00012979,2]
[346562873,1735087858931,-500.0,0.00012979,2]
[346562874,1735087858939,-1454.59,0.00012979,2]
[346562875,1735087858949,-500.0,0.00012979,2]
[346562876,1735087858958,-500.0,0.00012979,2]
[346562877,1735087858967,-500.0,0.00012979,2]
[346562878,1735087858976,-1813.87,0.00012979,2]
[346562879,1735087858985,-714.81,0.00012979,2]
[346562880,1735087858994,-1782.9,0.00012979,2]
[346562881,1735087859003,-1762.83,0.00012979,2]
[346562882,1735087859012,-500.0,0.00012979,2]
[346562883,1735087859021,-2582.26,0.00012979,2]
[346562884,1735087859031,-2118.46,0.00012979,2]
[346562885,1735087859039,-1738.72,0.00012979,2]
[346562886,1735087859048,-500.0,0.00012979,2]
[346562887,1735087859057,-500.0,0.00012979,2]
[346562888,1735087859066,-818.76,0.00012979,2]
[346562889,1735087859075,-2473.55,0.00012979,2]
[346562890,1735087859084,-1691.27,0.00012979,2]
[346562891,1735087859093,-500.0,0.00012979,2]
[346562892,1735087859103,-2046.11,0.00012979,2]
[346562893,1735087859112,-1083.73,0.00012979,2]
[346562894,1735087859121,-599.12,0.00012979,2]
[346562895,1735087859131,-2582.44,0.00012979,2]
[346562896,1735087859300,-1469.47,0.00012979,2]
[346562897,1735087859311,-3517.05,0.00012979,2]
[346562898,1735087859320,-2780.03,0.00012979,2]
[346562899,1735087859330,-1580.0,0.00012979,2]
[346562900,1735087859340,-500.0,0.00012979,2]
[346562901,1735087859350,-237796.40954,0.0001298,2]
[346562902,1735087859359,-151.0,0.0001298,2]
[346562903,1735087859369,-151.0,0.0001298,2]
[346562904,1735087859378,-155.594154,0.0001298,2]
[346562905,1735087859388,-155.594154,0.0001298,2]
[346562906,1735087859396,-151.0,0.0001298,2]
[346562907,1735087859406,-151.0,0.0001298,2]
[346562908,1735087859415,-151.0,0.0001298,2]
[346562909,1735087859424,-151.0,0.0001298,2]
[346562910,1735087859433,-151.0,0.0001298,2]
[346562911,1735087859443,-151.0,0.0001298,2]
[346562912,1735087859453,-151.0,0.0001298,2]
[346562913,1735087859462,-151.0,0.0001298,2]
[346562914,1735087859471,-151.0,0.0001298,2]
[346562915,1735087859481,-151.0,0.0001298,2]
[346562916,1735087859494,-151.0,0.0001298,2]
[346562917,1735087859505,-205.944074,0.0001298,2]
[346562918,1735087859515,-205.944076,0.0001298,2]
[346562919,1735087859525,-215.62514,0.0001298,2]
[346562920,1735087859534,-215.62514,0.0001298,2]
[346562921,1735087859544,-215.62514,0.0001298,2]
[346562922,1735087859553,-215.625134,0.0001298,2]
[346562923,1735087859563,-500.0,0.0001298,2]
[346562924,1735087859572,-500.0,0.0001298,2]
[346562925,1735087859581,-500.0,0.0001298,2]
[346562926,1735087859591,-500.0,0.0001298,2]
[346562927,1735087859601,-214.491292,0.0001298,2]
[346562928,1735087859611,-214.491287,0.0001298,2]
[346562929,1735087859620,-3517.05,0.0001298,2]
[346562930,1735087859630,-151.0,0.00012981,2]
[346562931,1735087859639,-151.0,0.00012981,2]
[346562932,1735087859649,-151.0,0.00012981,2]
[346562933,1735087859659,-151.0,0.00012981,2]
[346562934,1735087859668,-151.0,0.00012981,2]
[346562935,1735087859677,-151.0,0.00012981,2]
[346562936,1735087859687,-151.0,0.00012981,2]
[346562937,1735087859696,-151.0,0.00012981,2]
[346562938,1735087859705,-151.0,0.00012981,2]
[346562939,1735087859714,-151.0,0.00012981,2]
[346562940,1735087859724,-151.0,0.00012981,2]
[346562941,1735087859733,-151.0,0.00012981,2]
[346562942,1735087859750,-151.0,0.00012981,2]
[346562943,1735087859760,-151.0,0.00012981,2]
[346562944,1735087859770,-151.0,0.00012981,2]
[346562945,1735087859780,-151.0,0.00012981,2]
[346562946,1735087859791,-151.0,0.00012981,2]
[346562947,1735087859801,-151.0,0.00012981,2]
[346562948,1735087859811,-151.0,0.00012981,2]
[346562949,1735087859821,-153.065493,0.00012981,2]
[346562950,1735087859831,-151.0,0.00012981,2]
[346562951,1735087859840,-151.0,0.00012981,2]
[346562952,1735087859849,-151.0,0.00012981,2]
[346562953,1735087859858,-151.0,0.00012981,2]
[346562954,1735087859869,-151.0,0.00012981,2]
[346562955,1735087859878,-151.0,0.00012981,2]
[346562956,1735087859888,-151.0,0.00012981,2]
[346562957,1735087859897,-151.0,0.00012981,2]
[346562958,1735087859907,-151.0,0.00012981,2]
[346562959,1735087859917,-151.0,0.00012981,2]
[346562960,1735087859927,-151.0,0.00012981,2]
[346562961,1735087859936,-151.0,0.00012981,2]
[346562962,1735087859946,-151.0,0.00012981,2]
[346562963,1735087859955,-151.0,0.00012981,2]
[346562964,1735087859965,-151.0,0.00012981,2]
[346562965,1735087859974,-152.636036,0.00012981,2]
[346562966,1735087859983,-268.576119,0.00012981,2]
[346562967,1735087859995,-268.576119,0.00012981,2]
[346562968,1735087860005,-268.576119,0.00012981,2]
[346562969,1735087860014,-268.576119,0.00012981,2]
[346562970,1735087860023,-268.576119,0.00012981,2]
[346562971,1735087860033,-268.576119,0.00012981,2]
[346562972,1735087860043,-268.576119,0.00012981,2]
[346562973,1735087860053,-268.576119,0.00012981,2]
[346562974,1735087860063,-268.576119,0.00012981,2]
[346562975,1735087860073,-268.576119,0.00012981,2]
[346562976,1735087860083,-360.0,0.00012981,2]
[346562977,1735087860093,-360.0,0.00012981,2]
[346562978,1735087860103,-360.0,0.00012981,2]
[346562979,1735087860112,-360.0,0.00012981,2]
[346562980,1735087860121,-360.0,0.00012981,2]
[346562981,1735087860130,-360.0,0.00012981,2]
[346562982,1735087860140,-360.0,0.00012981,2]
[346562983,1735087860149,-360.0,0.00012981,2]
[346562984,1735087860159,-360.0,0.00012981,2]
[346562985,1735087860168,-360.0,0.00012981,2]
[346562986,1735087860177,-151.0,0.00012981,2]
[346562987,1735087860187,-151.0,0.00012981,2]
[346562988,1735087860196,-151.0,0.00012981,2]
[346562989,1735087860206,-151.0,0.00012981,2]
[346562990,1735087860215,-151.0,0.00012981,2]
[346562991,1735087860224,-155.594154,0.00012981,2]
[346562992,1735087860237,-155.594154,0.00012981,2]
[346562993,1735087860247,-155.594154,0.00012981,2]
[346562994,1735087860256,-155.594154,0.00012981,2]
[346562995,1735087860266,-155.594154,0.00012981,2]
[346562996,1735087860275,-155.594154,0.00012981,2]
[346562997,1735087860284,-155.594154,0.00012981,2]
[346562998,1735087860294,-151.0,0.00012981,2]
[346562999,1735087860303,-151.0,0.00012981,2]
[346563000,1735087860313,-151.0,0.00012981,2]
[346563001,1735087860322,-155.594154,0.00012981,2]
[346563002,1735087860331,-151.0,0.00012981,2]
[346563003,1735087860342,-155.594154,0.00012981,2]
[346563004,1735087860351,-155.594154,0.00012981,2]
[346563005,1735087860360,-298.342253,0.00012981,2]
[346563006,1735087860370,-151.0,0.00012981,2]
[346563007,1735087860379,-151.0,0.00012981,2]
[346563008,1735087860388,-151.0,0.00012981,2]
[346563009,1735087860397,-151.0,0.00012981,2]
[346563010,1735087860406,-151.0,0.00012981,2]
[346563011,1735087860415,-151.0,0.00012981,2]
[346563012,1735087860425,-151.0,0.00012981,2]
[346563013,1735087860434,-629.95,0.00012981,2]
[346563014,1735087860443,-500.0,0.00012981,2]
[346563015,1735087860453,-500.0,0.00012981,2]
[346563016,1735087860463,-500.0,0.00012981,2]
[346563017,1735087860472,-1134.93,0.00012981,2]
[346563018,1735087860482,-500.0,0.00012981,2]
[346563019,1735087860493,-500.0,0.00012981,2]
[346563020,1735087860502,-1027.87,0.00012981,2]